Workbook

Sheet SPP
A1: ChargeType | B1: 2015-01-01 | C1: 2015-02-01 | D1: 2015-03-01 | E1: 2015-04-01 | F1: 2015-05-01 | G1: 2015-06-01 | H1: 2015-07-01 | I1: 2015-08-01 | J1: 2015-09-01 | K1: 2015-10-01 | L1: 2015-11-01 | M1: 2015-12-01 | N1: 2016-01-01 | O1: 2016-02-01 | P1: 2016-03-01 | Q1: 2016-04-01 | R1: 2016-05-01 | S1: 2016-06-01 | T1: 2016-07-01 | U1: 2016-08-01 | V1: 2016-09-01 | W1: 2016-10-01 | X1: 2016-11-01 | Y1: 2016-12-01
A2: Schd1aTaNitsChg | B2: 262611.63 | C2: 237197.6 | D2: 262258.66 | E2: 254140.29 | F2: 262611.63 | G2: 254140.29 | H2: 262611.63 | I2: 262611.63 | J2: 254140.29 | K2: 262611.63 | L2: 254493.26 | M2: 262611.63 | N2: 233628.21 | O2: 218555.42 | P2: 233314.19 | Q2: 226091.82 | R2: 233628.21 | S2: 226091.82 | T2: 233628.21 | U2: 233628.21 | V2: 226091.82 | W2: 233628.21 | X2: 226405.83 | Y2: 233628.21
A3: MonthlyAssessmentChg | B3: 12.19 | C3: 11.01 | D3: 12.17 | E3: 11.79 | F3: 12.19 | G3: 11.79 | H3: 12.19 | I3: 12.19 | J3: 11.79 | K3: 12.19 | L3: 11.81 | M3: 12.19 | N3: 1.93 | O3: 1.8 | P3: 1.93 | Q3: 1.86 | R3: 1.93 | S3: 1.86 | T3: 1.93 | U3: 1.93 | V3: 1.86 | W3: 1.93 | X3: 1.87 | Y3: 1.93
A4: Schd11BprNitsChg | B4: 718694.36 | C4: 822364.56 | D4: 829883.74 | E4: 826984.13 | F4: 827009.53 | G4: 823434.03 | H4: 826535.07 | I4: 829533.73 | J4: 838585.18 | K4: 833865.35 | L4: 771918.87 | M4: 771918.87 | N4: 728517.37 | O4: 806621.14 | P4: 806620.75 | Q4: 808783.47 | R4: 813089.37 | S4: 796832.57 | T4: 804664.17 | U4: 809454.27 | V4: 834349.06 | W4: 2400022.66 | X4: 1217647.1 | Y4: 1006609.82
A5: Schd11BpzNitsChg | B5: 15420.9 | C5: 12154.13 | D5: 12154.13 | E5: 12154.13 | F5: 12154.13 | G5: 12154.13 | H5: 12154.13 | I5: 585.72 | J5: 288.9 | K5: 288.9 | L5: -89645.06 | M5: -119399.08 | N5: -103345.88 | O5: -104507.38 | P5: -103654.34 | Q5: -107886.34 | R5: -106830.24 | S5: -107270.14 | T5: -121259.83 | U5: -106028.17 | V5: -106833.01 | W5: 95963.9 | X5: 0 | Y5: -529803.04
A6: Schd12FercPtpIWNitsGfaChg | B6: 30271.65 | C6: 37549.6 | D6: 36225.49 | E6: 31237.34 | F6: 26023.14 | G6: 27651.05 | H6: 34713.67 | I6: 39650.3 | J6: 35791.39 | K6: 32125.51 | L6: 27359.64 | M6: 28525.59 | N6: 32405.79 | O6: 32765.55 | P6: 26838.66 | Q6: 24696.02 | R6: 22517.78 | S6: 24207.33 | T6: 32084.82 | U6: 34638.86 | V6: 33541 | W6: 28366.16 | X6: 24370.27 | Y6: 24178.03
A7: AdjSchd11BprNitsChg | B7: -778.33 | C7: -924 | D7: -874.28 | E7: -2067.54 | F7: -99.44 | G7: -1334.18 | H7: -1905.95 | I7: -5082.75 | J7: -2863.05 | K7: -1694.65 | L7: 73108.52 | M7: 122672.26 | N7: 100740.54 | O7: 103635.84 | P7: 99860.74 | Q7: 102003.69 | R7: 107636.26 | S7: 94909.72 | T7: 98935.23 | U7: 99257.39 | V7: 100136.86 | W7: -102173.81 | X7: -201162.34 | Y7: 10.9
A8: AdjSchd11BpzNitsChg | B8: 0 | C8: 0 | D8: 0 | E8: 0 | F8: 0 | G8: 0 | H8: 0 | I8: 0 | J8: 0 | K8: 0 | L8: 0 | M8: 0 | N8: -0.02 | O8: 0 | P8: 0 | Q8: 0 | R8: 0 | S8: 0 | T8: 0 | U8: 0 | V8: 0.09 | W8: 0 | X8: 0 | Y8: 0
A9: AdjSchd9NitsChg | B9: 0 | C9: 0 | D9: 0 | E9: 0 | F9: 0 | G9: 0 | H9: 0 | I9: 0 | J9: 0 | K9: 0 | L9: 0 | M9: 0 | N9: 0 | O9: 0 | P9: 0 | Q9: 0 | R9: 0 | S9: 0 | T9: 0 | U9: 0 | V9: 0 | W9: 0 | X9: 0 | Y9: 0
A10: Schd11BprPtpChg | B10: 0 | C10: 0 | D10: 0 | E10: 0 | F10: 0 | G10: 13.16 | H10: 0 | I10: 0 | J10: 0 | K10: 0 | L10: 0 | M10: 2.58 | N10: 0 | O10: 0 | P10: 0 | Q10: 0 | R10: 0 | S10: 0 | T10: 0 | U10: -0.08 | V10: -0.08 | W10: 725.51 | X10: 0 | Y10: 0
A11: Schd12FercPtpTOChg | B11: 0 | C11: 0 | D11: 0 | E11: 0 | F11: 0 | G11: 0 | H11: 0 | I11: 0 | J11: 0 | K11: 0 | L11: 0 | M11: 0 | N11: 0 | O11: 0 | P11: 0 | Q11: 0 | R11: 0 | S11: 0 | T11: 0 | U11: 0 | V11: 0 | W11: 0 | X11: 0 | Y11: 0
A12: Schd1aTaPtpChg | B12: 0 | C12: 0 | D12: 0 | E12: 0 | F12: 0 | G12: 1.95 | H12: 0 | I12: 0 | J12: 0 | K12: 0 | L12: -153.48 | M12: 0 | N12: 0 | O12: 0 | P12: 0 | Q12: 0 | R12: 0 | S12: 0 | T12: 0 | U12: 0 | V12: 0 | W12: 0 | X12: 0 | Y12: 0
A13: Sch1ScNitsChg | B13: 0 | C13: 0 | D13: 0 | E13: 0 | F13: 0 | G13: 0 | H13: 0 | I13: 0 | J13: 0 | K13: 0 | L13: 0 | M13: 0 | N13: 0 | O13: 0 | P13: 0 | Q13: 0 | R13: 0 | S13: 0 | T13: 0 | U13: 0 | V13: 0 | W13: 0 | X13: 0 | Y13: 0
A14: Schd1ScPtpChg | B14: 0 | C14: 0 | D14: 0 | E14: 0 | F14: 0 | G14: 1.25 | H14: 0 | I14: 0 | J14: 0 | K14: 0 | L14: 0.04 | M14: 0.13 | N14: 0 | O14: 0 | P14: 0 | Q14: 0 | R14: 0 | S14: 0 | T14: 0 | U14: 0.04 | V14: -0.04 | W14: 0 | X14: 0 | Y14: 0
A15: Schd2RvPtpChg | B15: 0 | C15: 0 | D15: 0 | E15: 0 | F15: 0 | G15: 0 | H15: 0 | I15: 0 | J15: 0 | K15: 0 | L15: 0 | M15: 0 | N15: 0 | O15: 0 | P15: 0 | Q15: 0 | R15: 0 | S15: 0 | T15: 0 | U15: 0 | V15: 0 | W15: 0 | X15: 0 | Y15: 0
A16: Schd3RfDirAssignChg | B16: 0 | C16: 0 | D16: 0 | E16: 0 | F16: 0 | G16: 0 | H16: 0 | I16: 0 | J16: 0 | K16: 0 | L16: 0 | M16: 0 | N16: 0 | O16: 0 | P16: 0 | Q16: 0 | R16: 0 | S16: 0 | T16: 0 | U16: 0 | V16: 0 | W16: 0 | X16: 0 | Y16: 0
A17: Schd5SpDirAssignChg | B17: 0 | C17: 0 | D17: 0 | E17: 0 | F17: 0 | G17: 0 | H17: 0 | I17: 0 | J17: 0 | K17: 0 | L17: 0 | M17: 0 | N17: 0 | O17: 0 | P17: 0 | Q17: 0 | R17: 0 | S17: 0 | T17: 0 | U17: 0 | V17: 0 | W17: 0 | X17: 0 | Y17: 0
A18: Schd6SuDirAssignChg | B18: 0 | C18: 0 | D18: 0 | E18: 0 | F18: 0 | G18: 0 | H18: 0 | I18: 0 | J18: 0 | K18: 0 | L18: 0 | M18: 0 | N18: 0 | O18: 0 | P18: 0 | Q18: 0 | R18: 0 | S18: 0 | T18: 0 | U18: 0 | V18: 0 | W18: 0 | X18: 0 | Y18: 0
A19: Schd8NfPtpChg | B19: 0 | C19: 0 | D19: 0.39 | E19: 0 | F19: 0 | G19: 13.65 | H19: 0 | I19: 0 | J19: 0 | K19: 0 | L19: 3.05 | M19: 0 | N19: 0 | O19: 0 | P19: 0 | Q19: 0 | R19: 0 | S19: 0 | T19: 0 | U19: 3.05 | V19: 0 | W19: -13.5 | X19: 0 | Y19: 0
A20: Schd11BpzPtpChg | B20: 0 | C20: 0 | D20: 80.33 | E20: 0 | F20: 0 | G20: 2.44 | H20: 0 | I20: 0 | J20: 0 | K20: 0 | L20: 0 | M20: 17.46 | N20: 0 | O20: 0 | P20: 0 | Q20: 0 | R20: 0 | S20: 0 | T20: 0 | U20: -0.04 | V20: -0.04 | W20: 109.63 | X20: 0 | Y20: 0
A21: AdjSchd7FirmPtpChg | B21: -45.98 | C21: 0 | D21: 0 | E21: 0 | F21: 0 | G21: 0 | H21: 0 | I21: 0 | J21: 0 | K21: 0 | L21: 0 | M21: 0 | N21: 0 | O21: 0 | P21: 0 | Q21: 0 | R21: 0 | S21: 0 | T21: 0 | U21: 0 | V21: 0 | W21: 0 | X21: 0 | Y21: 0
A22: AdjMonthlyAssessmentChg | B22: 0 | C22: 0 | D22: 0 | E22: 100.77 | F22: 0 | G22: 0 | H22: 0 | I22: 0 | J22: 0 | K22: 0 | L22: 0 | M22: 0 | N22: 0 | O22: 0 | P22: 0 | Q22: 0 | R22: 0 | S22: 0 | T22: -100.77 | U22: 0 | V22: 0 | W22: 0 | X22: 0 | Y22: 0
A23: AdjSchd11BpzPtpChg | B23: 0 | C23: 0 | D23: 55.71 | E23: 0 | F23: 0 | G23: 2.69 | H23: 0 | I23: 0 | J23: 0 | K23: 0 | L23: 0 | M23: 0 | N23: 0 | O23: 0 | P23: 0 | Q23: 0 | R23: 0 | S23: 0 | T23: 0 | U23: -0.03 | V23: 0 | W23: 0 | X23: 0 | Y23: 0
A24: AdjSchd1aTaPtpChg | B24: 0 | C24: 0 | D24: 0 | E24: 0 | F24: 0 | G24: -2997.35 | H24: -2143.21 | I24: -1250.78 | J24: -382.3 | K24: -2272.96 | L24: 0 | M24: -347.43 | N24: -8.75 | O24: -1181.22 | P24: 0 | Q24: 0 | R24: -16.44 | S24: 0 | T24: -0.51 | U24: -91.85 | V24: -107.27 | W24: -949.18 | X24: -168.1 | Y24: 2.58
A25: Schd12FercPtpTOChg | B25: 0 | C25: 0 | D25: 0 | E25: 0 | F25: 0 | G25: 0 | H25: 0 | I25: 0 | J25: 0 | K25: 0 | L25: 0 | M25: -0.01 | N25: 0 | O25: 0 | P25: 0 | Q25: 0 | R25: 0 | S25: 0 | T25: 0 | U25: 0 | V25: 0 | W25: 0 | X25: 0 | Y25: 0
A26: AdjSchd8NfPtpChg | B26: -8.74 | C26: 0 | D26: 0 | E26: -0.39 | F26: 0 | G26: 0 | H26: 0 | I26: 0 | J26: 0 | K26: 0 | L26: 0 | M26: 0 | N26: 0 | O26: 0.13 | P26: 0 | Q26: 0 | R26: 0 | S26: 0 | T26: 0 | U26: -6.08 | V26: -3.05 | W26: 0 | X26: 0 | Y26: 0
A27: AdjFS_LOSS_ADJ | B27: 0 | C27: -1.18 | D27: 0 | E27: 0 | F27: 0 | G27: 0 | H27: 0 | I27: 0 | J27: 0 | K27: 0 | L27: 0 | M27: 0 | N27: 0 | O27: 0 | P27: 0 | Q27: 0 | R27: 0 | S27: 0 | T27: 0 | U27: -0.93 | V27: 0 | W27: 0 | X27: 0 | Y27: 0
A28: ManualAdj | B28: 0 | C28: 0 | D28: 0 | E28: 0 | F28: 1039.22 | G28: 0 | H28: 0 | I28: 0 | J28: 0 | K28: 0 | L28: 0 | M28: 0 | N28: 0 | O28: 0 | P28: 0 | Q28: 0 | R28: 0 | S28: 0 | T28: 0 | U28: 0 | V28: 0 | W28: 0 | X28: 0 | Y28: 0
A29: Schd2RvPtpChg | B29: 0 | C29: 0 | D29: 0 | E29: 0 | F29: 0 | G29: 0 | H29: 0 | I29: 0.02 | J29: 0 | K29: 0 | L29: 0 | M29: 0 | N29: 0 | O29: 0 | P29: 0 | Q29: 0 | R29: 0 | S29: 0 | T29: 0 | U29: 0 | V29: 0 | W29: 0 | X29: 0 | Y29: 0
A30: AdjMISC_ADJ | B30: 0 | C30: 0 | D30: 0 | E30: 0 | F30: 0 | G30: 0 | H30: 0 | I30: 0 | J30: 0 | K30: 0 | L30: 0 | M30: 0 | N30: -1125.02 | O30: 0 | P30: 0 | Q30: 0 | R30: 0 | S30: 0 | T30: 0 | U30: 0 | V30: 0 | W30: 0 | X30: 0 | Y30: 0
A31: AdjSchd2RvNitsChg | B31: 0 | C31: 0 | D31: 0 | E31: 0 | F31: 0 | G31: 0 | H31: 0 | I31: 0 | J31: 0 | K31: 0 | L31: 0 | M31: 0 | N31: 0 | O31: -15.39 | P31: 15.39 | Q31: 0 | R31: 0 | S31: 0 | T31: 0 | U31: 0 | V31: -10.82 | W31: 10.82 | X31: 0 | Y31: 0
A32: Z2NitsDirAssignChg | W32: 14814.1 | X32: 0 | Y32: 0
A33: AdjZ2DANitsCreditChg | W33: 423.26 | X33: 423.26 | Y33: 423.26
A34: AdjZ2Sch11RPtpRRCreditInt | W34: 0 | X34: 0 | Y34: 0
A35: AdjZ2Sch11ZPtpRRCreditInt | W35: 0 | X35: 0 | Y35: 0
A36: AdjZ2Sch8PtpRRCreditInt | W36: 0 | X36: 0 | Y36: 0
A37: AdjZ2Sch11RPtpRRCredit
A38: AdjZ2Sch11ZPtpRRCredit
A39: AdjZ2Sch8PtpRRCredit
A40: AdjZ2Sch11NitsRRCreditInt

Sheet MISO
A1: Schedule | B1: Description | C1: 2015-01-01 | D1: 2015-02-01 | E1: 2015-03-01 | F1: 2015-04-01 | G1: 2015-05-01 | H1: 2015-06-01 | I1: 2015-07-01 | J1: 2015-08-01 | K1: 2015-09-01 | L1: 2015-10-01 | M1: 2015-11-01 | N1: 2015-12-01 | O1: 2016-01-01 | P1: 2016-02-01 | Q1: 2016-03-01 | R1: 2016-04-01 | S1: 2016-05-01 | T1: 2016-06-01 | U1: 2016-07-01 | V1: 2016-08-01 | W1: 2016-09-01 | X1: 2016-10-01 | Y1: 2016-11-01 | Z1: 2016-12-01
A2: Schedule 1 | B2: Scheduling, system control, & dispatch service | C2: 6599.64 | D2: 5690.96 | E2: 6599.64 | F2: 6386.74 | G2: 6599.64 | H2: 6438.66 | I2: 6651.14 | J2: 6651.14 | K2: 6436.58 | L2: 6651.14 | M2: 6321.3 | N2: 6532.02 | O2: 7653.06 | P2: 7159.32 | Q2: 7653.06 | R2: 7406.2 | S2: 7652.38 | T2: 7321.98 | U2: 7566.06 | V2: 7566.06 | W2: 7321.98 | X2: 7565.58 | Y2: 7321.52 | Z2: 7565.58
A3: Schedule 2 | B3: Reactive supply and voltage control | C3: 17459.06 | D3: 15819.7 | E3: 17141.18 | F3: 17051.12 | G3: 17612.84 | H3: 17037.06 | I3: 17668.48 | J3: 17693.46 | K3: 17192.76 | L3: 17745.74 | M3: 17058.48 | N3: 17627.1 | O3: 17915.72 | P3: 16773.14 | Q3: 17419.5 | R3: 16834.28 | S3: 16038.18 | T3: 15404.4 | U3: 15984.72 | V3: 15918.9 | W3: 15560.76 | X3: 16027.88 | Y3: 15406.84 | Z3: 16104.06
A4: Schedule 7 | B4: Firm Point-to-point | C4: 291597.02 | D4: 263377.94 | E4: 291597.02 | F4: 282190.66 | G4: 291597.02 | H4: 285383.44 | I4: 294801.44 | J4: 294801.44 | K4: 285291.7 | L4: 294801.44 | M4: 292377.38 | N4: 302123.3 | O4: 317804.16 | P4: 297309.42 | Q4: 317844.52 | R4: 255320.2 | S4: 263824.02 | T4: 307090.3 | U4: 317326.64 | V4: 317326.64 | W4: 307090.3 | X4: 300354.06 | Y4: 290665.22 | Z4: 300354.06
A5: Schedule 10-Demand | B5: FERC Annual Charges Recovery | C5: 4642.56 | D5: 4368 | E5: 5327.04 | F5: 5083.2 | G5: 4441.68 | H5: 5119.2 | I5: 3124.8 | J5: 4426.8 | K5: 3844.8 | L5: 4687.2 | M5: 4896 | N5: 5937.12 | O5: 5111.28 | P5: 4704.96 | Q5: 5490.72 | R5: 5990.4 | S5: 4880.64 | T5: 4471.2 | U5: 3519.12 | V5: 4344.96 | W5: 3960 | X5: 5170.8 | Y5: 4845.6 | Z5: 5580
A6: Schedule 10-Energy | B6: FERC Annual Charges Recovery | C6: 4710.04 | D6: 4354.76 | E6: 5426.82 | F6: 5177 | G6: 4427.74 | H6: 5426.08 | I6: 3023.52 | J6: 4610.7 | K6: 3690.94 | L6: 5044.5 | M6: 4907.08 | N6: 6389.78 | O6: 5163.96 | P6: 5180.64 | Q6: 5191.56 | R6: 5909.3 | S6: 5206.28 | T6: 4409.64 | U6: 3509.28 | V6: 4266.54 | W6: 3673.46 | X6: 5312.48 | Y6: 5290.46 | Z6: 5986.54
A7: Schedule 10-FERC | B7: FERC Annual Charges Recovery | C7: 3697.68 | D7: 3339.84 | E7: 3697.68 | F7: 3578.4 | G7: 3697.68 | H7: 3578.4 | I7: 3697.68 | J7: 3303.36 | K7: 3196.8 | L7: 3303.36 | M7: 3196.8 | N7: 3303.36 | O7: 3303.36 | P7: 3090.24 | Q7: 3303.36 | R7: 3196.8 | S7: 3303.36 | T7: 3196.8 | U7: 3303.36 | V7: 4359.84 | W7: 4219.2 | X7: 4359.84 | Y7: 4219.2 | Z7: 4359.84
A8: Schedule 11 | B8: Wholesale distribution service | L8: 68.55 | M8: 2.55 | N8: 39.58 | O8: 3454.83 | P8: 6.12 | Q8: 199.33 | R8: 294.12 | S8: 15.35 | T8: 94690.07 | U8: 215.01 | V8: 192.52 | W8: 15.93 | X8: 9978.82 | Y8: 92338.57 | Z8: 150.28
A9: Schedule 26 | B9: Upgrade charge from expansion plan | C9: 35325.52 | D9: 31906.92 | E9: 35325.52 | F9: 34185.98 | G9: 35325.52 | H9: 34048.24 | I9: 35171.88 | J9: 35171.88 | K9: 34037.3 | L9: 35171.88 | M9: 33845.82 | N9: 34974.02 | O9: 37293.96 | P9: 34887.9 | Q9: 37262.68 | R9: 0 | S9: 0
A10: Schedule 33 | B10: Blackstart | C10: 389.36 | D10: 351.68 | E10: 389.36 | F10: 376.8 | G10: 389.36 | H10: 375 | I10: 387.36 | J10: 387.36 | K10: 374.88 | L10: 387.36 | M10: 389.72 | N10: 402.7 | O10: 402.62 | P10: 376.64 | Q10: 402.62 | R10: 389.62 | S10: 402.58 | T10: 394.2 | U10: 407.36 | V10: 407.36 | W10: 394.2 | X10: 407.32 | Y10: 394.118 | Z10: 407.32
A11: Schedule 45 | B11: NERC cost recovery | C11: 754.36 | D11: 681.36 | E11: 754.36 | F11: 730.02 | G11: 754.36 | H11: 726.52 | I11: 750.5 | J11: 750.5 | K11: 726.28 | L11: 750.5 | M11: 722.2 | N11: 746.28 | O11: 757.92 | P11: 709.02 | Q11: 757.92 | R11: 733.48 | S11: 757.86 | T11: 742.1 | U11: 766.84 | V11: 766.84 | W11: 742.1 | X11: 702.4 | Y11: 679.74 | Z11: 702.4
B12: Recovery of ICT Operations Cost
A13: Schedule 8 | B13: Non-Firm Point-to-point

Sheet AECI-CU
A1: Dt | B1: 2015-01-01 | C1: 2015-02-01 | D1: 2015-03-01 | E1: 2015-04-01 | F1: 2015-05-01 | G1: 2015-06-01 | H1: 2015-07-01 | I1: 2015-08-01 | J1: 2015-09-01 | K1: 2015-10-01 | L1: 2015-11-01 | M1: 2015-12-01 | N1: 2016-01-01 | O1: 2016-02-01 | P1: 2016-03-01 | Q1: 2016-04-01 | R1: 2016-05-01 | S1: 2016-06-01 | T1: 2016-07-01 | U1: 2016-08-01 | V1: 2016-09-01 | W1: 2016-10-01 | X1: 2016-11-01 | Y1: 2016-12-01
A2: CU | B2: 11000 | C2: 11000 | D2: 11000 | E2: 11000 | F2: 11000 | G2: 11000 | H2: 10736.81 | I2: 11000 | J2: 11263.19 | K2: 11000 | L2: 11000 | M2: 11000 | N2: 11000 | O2: 11000 | P2: 11000 | Q2: 11000 | R2: 11000 | S2: 11000 | T2: 11000 | U2: 11000 | V2: 11000 | W2: 11000 | X2: 11000 | Y2: 11000
A3: AECI | V3: 8935.73 | W3: 8935.73 | X3: 8935.73 | Y3: 8935.73

Sheet MISO RTOR
A1: Dt | B1: 2016-01-01 | C1: 2016-02-01 | D1: 2016-03-01 | E1: 2016-04-01 | F1: 2016-05-01 | G1: 2016-06-01 | H1: 2016-07-01 | I1: 2016-08-01 | J1: 2016-09-01 | K1: 2016-10-01 | L1: 2016-11-01 | M1: 2016-12-01
A2: RTOR Settlement | G2: -268229.27 | J2: -1694307.07

Sheet SPP Short Pay-Adj
A1: Dt | B1: 2015-01-01 | C1: 2015-02-01 | D1: 2015-03-01 | E1: 2015-04-01 | F1: 2015-05-01 | G1: 2015-06-01 | H1: 2015-07-01 | I1: 2015-08-01 | J1: 2015-09-01 | K1: 2015-10-01 | L1: 2015-11-01 | M1: 2015-12-01
A2: Short Pay | G2: 247.75 | K2: 5.82

Sheet Summary
A1: Dt | B1: 2015-01-01 | C1: 2015-02-01 | D1: 2015-03-01 | E1: 2015-04-01 | F1: 2015-05-01 | G1: 2015-06-01 | H1: 2015-07-01 | I1: 2015-08-01 | J1: 2015-09-01 | K1: 2015-10-01 | L1: 2015-11-01 | M1: 2015-12-01 | P1: 2016-01-01 | Q1: 2016-02-01 | R1: 2016-03-01 | S1: 2016-04-01 | T1: 2016-05-01 | U1: 2016-06-01 | V1: 2016-07-01 | W1: 2016-08-01 | X1: 2016-09-01 | Y1: 2016-10-01 | Z1: 2016-11-01 | AA1: 2016-12-01 | AD1: Diff | AE1: Diff (%)
A2: SPP | B2: =SUM(SPP!B2:B40)+'SPP Short Pay-Adj'!B2 -> 1026177.68 | C2: =SUM(SPP!C2:C40)+'SPP Short Pay-Adj'!C2 -> 1108351.72 | D2: =SUM(SPP!D2:D40)+'SPP Short Pay-Adj'!D2 -> 1139796.34 | E2: =SUM(SPP!E2:E40)+'SPP Short Pay-Adj'!E2 -> 1122560.52 | F2: =SUM(SPP!F2:F40)+'SPP Short Pay-Adj'!F2 -> 1128750.4 | G2: =SUM(SPP!G2:G40)+'SPP Short Pay-Adj'!G2 -> 1113342.65 | H2: =SUM(SPP!H2:H40)+'SPP Short Pay-Adj'!H2 -> 1131977.53 | I2: =SUM(SPP!I2:I40)+'SPP Short Pay-Adj'!I2 -> 1126060.06 | J2: =SUM(SPP!J2:J40)+'SPP Short Pay-Adj'!J2 -> 1125572.2 | K2: =SUM(SPP!K2:K40)+'SPP Short Pay-Adj'!K2 -> 1124941.79 | L2: =SUM(SPP!L2:L40)+'SPP Short Pay-Adj'!L2 -> 1037096.65 | M2: =SUM(SPP!M2:M40)+'SPP Short Pay-Adj'!M2 -> 1066014.19 | N2: =SUM(B2:M2) -> 13250641.73 | P2: =SUM(SPP!N2:N40) -> 990814.17 | Q2: =SUM(SPP!O2:O40) -> 1055875.89 | R2: =SUM(SPP!P2:P40) -> 1062997.32 | S2: =SUM(SPP!Q2:Q40) -> 1053690.52 | T2: =SUM(SPP!R2:R40) -> 1070026.87 | U2: =SUM(SPP!S2:S40) -> 1034773.16 | V2: =SUM(SPP!T2:T40) -> 1047953.25 | W2: =SUM(SPP!U2:U40) -> 1070856.57 | X2: =SUM(SPP!V2:V40) -> 1087166.38 | Y2: =SUM(SPP!W2:W40) -> 2670929.69 | Z2: =SUM(SPP!X2:X40) -> 1267517.89 | AA2: =SUM(SPP!Y2:Y40) -> 735051.69 | AB2: =SUM(P2:AA2) -> 14147653.4 | AD2: =AB2-N2 -> 897011.67
A3: MISO | B3: =SUM(MISO!C2:C13) -> 365175.24 | C3: =SUM(MISO!D2:D13) -> 329891.16 | D3: =SUM(MISO!E2:E13) -> 366258.62 | E3: =SUM(MISO!F2:F13) -> 354759.92 | F3: =SUM(MISO!G2:G13) -> 364845.84 | G3: =SUM(MISO!H2:H13) -> 358132.6 | H3: =SUM(MISO!I2:I13) -> 365276.8 | I3: =SUM(MISO!J2:J13) -> 367796.64 | J3: =SUM(MISO!K2:K13) -> 354792.04 | K3: =SUM(MISO!L2:L13) -> 368611.67 | L3: =SUM(MISO!M2:M13) -> 363717.33 | M3: =SUM(MISO!N2:N13) -> 378075.26 | N3: =SUM(B3:M3) -> 4337333.12 | P3: =SUM(MISO!O2:O13)+'MISO RTOR'!B2 -> 398860.87 | Q3: =SUM(MISO!P2:P13)+'MISO RTOR'!C2 -> 370197.4 | R3: =SUM(MISO!Q2:Q13)+'MISO RTOR'!D2 -> 395525.27 | S3: =SUM(MISO!R2:R13)+'MISO RTOR'!E2 -> 296074.4 | T3: =SUM(MISO!S2:S13)+'MISO RTOR'!F2 -> 302080.65 | U3: =SUM(MISO!T2:T13)+'MISO RTOR'!G2 -> 169491.42 | V3: =SUM(MISO!U2:U13)+'MISO RTOR'!H2 -> 352598.39 | W3: =SUM(MISO!V2:V13)+'MISO RTOR'!I2 -> 355149.66 | X3: =SUM(MISO!W2:W13)+'MISO RTOR'!J2 -> -1351329.14 | Y3: =SUM(MISO!X2:X13)+'MISO RTOR'!K2 -> 349879.18 | Z3: =SUM(MISO!Y2:Y13)+'MISO RTOR'!L2 -> 421161.268 | AA3: =SUM(MISO!Z2:Z13)+'MISO RTOR'!M2 -> 341210.08 | AB3: =SUM(P3:AA3) -> 2400899.448 | AD3: -1936433.672
A4: MISO Estimate | B4: 354383.9 | C4: 341386.4 | D4: 366258.62 | E4: 354500 | F4: 359902.64 | G4: 358132.6 | H4: 356422.23 | I4: 356643.77 | J4: 341078.36 | K4: 367075.94 | L4: 348573.35 | M4: 433679.21 | N4: =SUM(B4:M4) -> 4338037.02 | P4: 378000 | Q4: 391058.27 | R4: 395525.27 | S4: 296074.4 | T4: 302077.65 | U4: =293000-268229.28 -> 24770.72 | V4: 400057.89 | W4: 344322.6 | X4: =345000-1694307.07 -> -1349307.07 | Y4: 352763.13 | Z4: 311056.81 | AA4: 450904.27 | AB4: =SUM(P4:AA4) -> 2297303.94 | AD4: -2040733.08
A5: AECI-CU | B5: =SUM('AECI-CU'!B2:B3) -> 11000 | C5: =SUM('AECI-CU'!C2:C3) -> 11000 | D5: =SUM('AECI-CU'!D2:D3) -> 11000 | E5: =SUM('AECI-CU'!E2:E3) -> 11000 | F5: =SUM('AECI-CU'!F2:F3) -> 11000 | G5: =SUM('AECI-CU'!G2:G3) -> 11000 | H5: =SUM('AECI-CU'!H2:H3) -> 10736.81 | I5: =SUM('AECI-CU'!I2:I3) -> 11000 | J5: =SUM('AECI-CU'!J2:J3) -> 11263.19 | K5: =SUM('AECI-CU'!K2:K3) -> 11000 | L5: =SUM('AECI-CU'!L2:L3) -> 11000 | M5: =SUM('AECI-CU'!M2:M3) -> 11000 | N5: =SUM(B5:M5) -> 132000 | P5: =SUM('AECI-CU'!N2:N3) -> 11000 | Q5: =SUM('AECI-CU'!O2:O3) -> 11000 | R5: =SUM('AECI-CU'!P2:P3) -> 11000 | S5: =SUM('AECI-CU'!Q2:Q3) -> 11000 | T5: =SUM('AECI-CU'!R2:R3) -> 11000 | U5: =SUM('AECI-CU'!S2:S3) -> 11000 | V5: =SUM('AECI-CU'!T2:T3) -> 11000 | W5: =SUM('AECI-CU'!U2:U3) -> 11000 | X5: =SUM('AECI-CU'!V2:V3) -> 19935.73 | Y5: =SUM('AECI-CU'!W2:W3) -> 19935.73 | Z5: =SUM('AECI-CU'!X2:X3) -> 19935.73 | AA5: =SUM('AECI-CU'!Y2:Y3) -> 19935.73 | AB5: =SUM(P5:AA5) -> 167742.92 | AD5: 35742.92
A8: Total Actuals | B8: =SUM(B2:B3,B5) -> 1402352.92 | C8: =SUM(C2:C3,C5) -> 1449242.88 | D8: 1517054.96 | E8: 1488320.44 | F8: 1504596.24 | G8: 1482475.25 | H8: 1507991.14 | I8: 1504856.7 | J8: 1491627.43 | K8: 1504553.46 | L8: 1411813.98 | M8: 1455089.45 | N8: =SUM(B8:M8) -> 17719974.85 | P8: =SUM(P2:P3,P5) -> 1400675.04 | Q8: =SUM(Q2:Q3,Q5) -> 1437073.29 | R8: 1469522.59 | S8: 1360764.92 | T8: 1383107.52 | U8: 1215264.58 | V8: 1411551.64 | W8: 1437006.23 | X8: -244227.03 | Y8: 3040744.6 | Z8: 1708614.888 | AA8: 1096197.5 | AB8: =SUM(P8:AA8) -> 16716295.77 | AD8: =AB8-N8 -> -1003679.082 | AE8: =AB8/N8-1 -> -0.05664111211
A9: Total w/ Estimate | B9: =SUM(B2,B4:B5) -> 1391561.58 | C9: =SUM(C2,C4:C5) -> 1460738.12 | D9: 1517054.96 | E9: 1488060.52 | F9: 1499653.04 | G9: 1482475.25 | H9: 1499136.57 | I9: 1493703.83 | J9: 1477913.75 | K9: 1503017.73 | L9: 1396670 | M9: 1510693.4 | N9: =SUM(B9:M9) -> 17720678.75 | P9: =SUM(P2,P4:P5) -> 1379814.17 | Q9: =SUM(Q2,Q4:Q5) -> 1457934.16 | R9: 1469522.59 | S9: 1360764.92 | T9: 1383104.52 | U9: 1070543.88 | V9: 1459011.14 | W9: 1426179.17 | X9: -242204.96 | Y9: 3043628.55 | Z9: 1598510.43 | AA9: 1205891.69 | AB9: =SUM(P9:AA9) -> 16612700.26 | AD9: =AB9-N9 -> -1107978.49 | AE9: =AB9/N9-1 -> -0.06252460787
